fUSD/lending_fUSD_20240327
["ID","MTS","AMOUNT","RATE_DAILY","PERIOD"]
[320737087,1711539158740,-650.65,0.00060821,120]
[320737088,1711539158752,-666.49,0.00060821,120]
[320737089,1711539158763,-512.61,0.00060821,120]
[320737090,1711539158772,-415.16601604,0.00060821,120]
[320737091,1711539158781,-610.66,0.00060821,120]
[320737092,1711539158791,-544.48,0.00060821,120]
[320737093,1711539158801,-500.0,0.00060821,120]
[320737094,1711539158812,-1264.52,0.00060821,120]
[320737095,1711539158822,-564.14,0.00060821,120]
[320737096,1711539158831,-617.82,0.00060821,120]
[320737097,1711539158840,-832.09,0.00060821,120]
[320737098,1711539158850,-921.37,0.00060821,120]
[320737099,1711539158859,-695.47,0.00060821,120]
[320737100,1711539158869,-1458.74,0.00060821,120]
[320737101,1711539158878,-597.38,0.00060821,120]
[320737102,1711539158889,-1146.87,0.00060821,120]
[320737103,1711539158900,-2719.96,0.00060821,120]
[320737104,1711539158910,-500.0,0.00060821,120]
[320737105,1711539158920,-1170.95,0.00060821,120]
[320737106,1711539158929,-1986.6,0.00060821,120]
[320737107,1711539158940,-884.38,0.00060821,120]
[320737108,1711539158950,-1057.95,0.00060821,120]
[320737109,1711539158960,-616.91,0.00060821,120]
[320737110,1711539158969,-533.04,0.00060821,120]
[320737111,1711539158978,-702.45,0.00060821,120]
[320737112,1711539158988,-537.22,0.00060821,120]
[320737113,1711539158996,-5471.51,0.00060821,120]
[320737114,1711539159006,-587.11,0.00060821,120]
[320737115,1711539159016,-2128.3,0.00060821,120]
[320737116,1711539159026,-961.96,0.00060821,120]
[320737117,1711539159035,-792.02,0.00060821,120]
[320737118,1711539159046,-613.31,0.00060821,120]
[320737119,1711539159056,-1258.8,0.00060821,120]
[320737120,1711539159066,-931.2,0.00060821,120]
[320737121,1711539159075,-663.5,0.00060821,120]
[320737122,1711539159085,-1126.29,0.00060821,120]
[320737123,1711539159094,-905.93,0.00060821,120]
[320737124,1711539159104,-596.37,0.00060821,120]
[320737125,1711539159115,-1145.15,0.00060821,120]
[320737126,1711539159125,-1047.43,0.00060821,120]
[320737127,1711539159134,-1079.19,0.00060821,120]
[320737128,1711539159143,-500.0,0.00060821,120]
[320737129,1711539159153,-1050.1,0.00060821,120]
[320737130,1711539159163,-668.88,0.00060821,120]
[320737131,1711539159172,-798.22,0.00060821,120]
[320737132,1711539159181,-865.88,0.00060821,120]
[320737133,1711539159190,-500.0,0.00060821,120]
[320737134,1711539159199,-698.77,0.00060821,120]
[320737135,1711539159208,-805.48,0.00060821,120]
[320737136,1711539159218,-895.29,0.00060821,120]
[320737137,1711539159227,-2904.63,0.00060821,120]
[320737138,1711539159237,-575.0,0.00060821,120]
[320737139,1711539159246,-1059.6,0.00060821,120]
[320737140,1711539159255,-624.76,0.00060821,120]
[320737141,1711539159267,-566.16,0.00060821,120]
[320737142,1711539159279,-596.27,0.00060821,120]
[320737143,1711539159290,-511.44,0.00060821,120]
[320737144,1711539159301,-2461.83,0.00060821,120]
[320737145,1711539159313,-670.39,0.00060821,120]
[320737146,1711539159322,-1096.84,0.00060821,120]
[320737147,1711539159331,-730.57,0.00060821,120]
[320737148,1711539159340,-526.24,0.00060821,120]
[320737149,1711539159350,-813.47,0.00060821,120]
[320737150,1711539159361,-982.22,0.00060821,120]
[320737151,1711539159371,-2323.15,0.00060821,120]
[320737152,1711539159381,-952.22,0.00060821,120]
[320737153,1711539159392,-1090.65,0.00060821,120]
[320737154,1711539159404,-819.74,0.00060821,120]
[320737155,1711539159415,-2118.58,0.00060821,120]
[320737156,1711539159425,-1006.99,0.00060821,120]
[320737157,1711539159434,-680.58,0.00060821,120]
[320737158,1711539159444,-2012.56,0.00060821,120]
[320737159,1711539159454,-525.09,0.00060821,120]
[320737160,1711539159464,-1027.05,0.00060821,120]
[320737161,1711539159474,-775.63,0.00060821,120]
[320737162,1711539159485,-909.15,0.00060821,120]
[320737163,1711539159495,-669.48,0.00060821,120]
[320737164,1711539159505,-2014.61,0.00060821,120]
[320737165,1711539159517,-613.39,0.00060821,30]
[320737166,1711539159526,-670.15,0.00060821,120]
[320737167,1711539159536,-613.0,0.00060821,120]
[320737168,1711539159546,-500.0,0.00060821,120]
[320737169,1711539159556,-741.01,0.00060821,120]
[320737170,1711539159567,-715.82,0.00060821,120]
[320737171,1711539159576,-693.91,0.00060821,120]
[320737172,1711539159587,-1436.63,0.00060821,120]
[320737173,1711539159596,-788.63,0.00060821,120]
[320737174,1711539159606,-852.33,0.00060821,120]
[320737175,1711539159616,-608.04,0.00060821,120]
[320737176,1711539159625,-632.68,0.00060821,120]
[320737177,1711539159636,-524.62,0.00060821,120]
[320737178,1711539159645,-620.43,0.00060821,120]
[320737179,1711539159657,-818.9,0.00060821,120]
[320737180,1711539159666,-2063.63,0.00060821,120]
[320737181,1711539159675,-1004.28,0.00060821,120]
[320737182,1711539159684,-2011.71,0.00060821,120]
[320737183,1711539159694,-807.51,0.00060821,120]
[320737184,1711539159704,-755.18,0.00060821,120]
[320737185,1711539159713,-763.33,0.00060821,120]
[320737186,1711539159723,-487.81,0.00060821,120]
[320737187,1711539159733,-842.7,0.00060821,120]
[320737188,1711539159742,-713.05,0.00060821,120]
[320737189,1711539159751,-2308.15,0.00060821,120]
[320737190,1711539159762,-500.0,0.00060821,120]
[320737191,1711539159771,-676.12,0.00060821,120]
[320737192,1711539159780,-849.59,0.00060821,120]
[320737193,1711539159789,-677.22,0.00060821,120]
[320737194,1711539159799,-800.48,0.00060821,120]
[320737195,1711539159808,-988.02,0.00060821,120]
[320737196,1711539159818,-535.04,0.00060821,120]
[320737197,1711539159828,-930.48,0.00060821,120]
[320737198,1711539159837,-877.53,0.00060821,120]
[320737199,1711539159847,-2082.72,0.00060821,120]
[320737200,1711539159856,-520.53,0.00060821,120]
[320737201,1711539159866,-1016.45,0.00060821,120]
[320737202,1711539159876,-525.83,0.00060821,120]
[320737203,1711539159885,-1436.62,0.00060821,120]
[320737204,1711539159895,-2558.6,0.00060821,120]
[320737205,1711539159905,-2044.63,0.00060821,120]
[320737206,1711539159914,-545.88,0.00060821,120]
[320737207,1711539159925,-783.0,0.00060821,120]
[320737208,1711539159935,-3085.25,0.00060821,120]
[320737209,1711539159945,-839.83,0.00060821,120]
[320737210,1711539159955,-735.26,0.00060821,120]
[320737211,1711539159964,-3173.89,0.00060821,120]
[320737212,1711539159974,-1365.01,0.00060821,120]
[320737213,1711539159983,-1347.96,0.00060821,120]
[320737214,1711539159993,-5132.44,0.00060821,120]
[320737215,1711539160002,-558.52,0.00060821,120]
[320737216,1711539160012,-7133.78,0.00060821,120]
[320737217,1711539160021,-579.76,0.00060821,120]
[320737218,1711539160030,-1944.43,0.00060821,120]
[320737219,1711539160040,-6097.44,0.00060821,120]
[320737220,1711539160049,-5109.09,0.00060821,120]
[320737221,1711539160058,-545.62,0.00060821,120]
[320737222,1711539160067,-663.4,0.00060821,120]
[320737223,1711539160077,-22670.34,0.00060821,120]
[320737224,1711539160087,-2453.89,0.00060821,120]
[320737225,1711539160184,-2612.82,0.00060821,120]
[320737226,1711539160198,-1096.81,0.00060821,120]
[320737227,1711539160208,-2520.37,0.00060821,120]
[320737228,1711539160217,-7956.37,0.00060821,120]
[320737229,1711539160227,-628.48,0.00060821,120]
[320737230,1711539160236,-474.56905127,0.00060821,120]
[320737231,1711539160246,-1032.54,0.00060821,120]
[320737232,1711539160255,-2884.81,0.00060821,120]
[320737233,1711539160268,-3753.0,0.00060821,120]
[320737234,1711539160280,-5025.57,0.00060821,120]
[320737235,1711539160289,-43977.12,0.00060821,120]
[320737236,1711539160299,-9397.34,0.00060821,120]
[320737237,1711539160313,-7954.08,0.00060821,120]
[320737238,1711539160324,-832.53,0.00060821,120]
[320737239,1711539160334,-5423.8,0.00060821,120]
[320737240,1711539160345,-5589.81,0.00060821,120]
[320737241,1711539160356,-3477.52,0.00060821,120]
[320737242,1711539160365,-500.0,0.00060821,120]
[320737243,1711539160374,-3295.4,0.00060821,120]
[320737244,1711539160384,-79143.13,0.00060821,120]
[320737245,1711539160393,-4233.1,0.00060821,120]
[320737246,1711539160402,-1554.43,0.00060821,120]
[320737247,1711539160412,-21230.92,0.00060821,120]
[320737248,1711539160480,-1796.45,0.00060821,120]
[320737249,1711539160490,-1488.59,0.00060821,120]
[320737250,1711539160500,-1590.82,0.00060821,120]
[320737251,1711539160511,-4270.02,0.00060821,120]
[320737252,1711539160520,-1416.51,0.00060821,120]
[320737253,1711539160530,-1436.29,0.00060821,120]
[320737254,1711539160539,-2733.23,0.00060821,120]
[320737255,1711539160549,-4828.26,0.00060821,120]
[320737256,1711539160558,-2699.02,0.00060821,120]
[320737257,1711539160569,-794.6,0.00060821,120]
[320737258,1711539160579,-4103.23,0.00060821,120]
[320737259,1711539160588,-2649.26,0.00060821,120]
[320737260,1711539160598,-1067.47,0.00060821,120]
[320737261,1711539160607,-3406.52,0.00060821,120]
[320737262,1711539160617,-1008.05,0.00060821,120]
[320737263,1711539160627,-532.43,0.00060821,120]
[320737264,1711539160637,-3326.63,0.00060821,120]
[320737265,1711539160647,-949.03,0.00060821,120]
[320737266,1711539160657,-13832.31,0.00060821,120]
[320737267,1711539160666,-5725.46,0.00060821,120]
[320737268,1711539160675,-1080.08,0.00060821,120]
[320737269,1711539160685,-638.55,0.00060821,120]
[320737270,1711539160694,-532.1,0.00060821,120]
[320737271,1711539160704,-3178.59,0.00060821,120]
[320737272,1711539160713,-868.21,0.00060821,120]
[320737273,1711539160724,-5718.22,0.00060821,120]
[320737274,1711539160734,-1914.32,0.00060821,120]
[320737275,1711539160745,-1510.54,0.00060821,120]
[320737276,1711539160755,-6090.95,0.00060821,120]
[320737277,1711539160766,-2368.29,0.00060821,120]
[320737278,1711539160776,-1975.68,0.00060821,120]
[320737279,1711539160785,-2626.24,0.00060821,120]
[320737280,1711539160796,-826.27,0.00060821,120]
[320737281,1711539160806,-5971.8,0.00060821,120]
[320737282,1711539160815,-6306.66,0.00060821,120]
[320737283,1711539160825,-3796.34,0.00060821,120]
[320737284,1711539160835,-3897.67,0.00060821,120]
[320737285,1711539160847,-2196.71,0.00060821,120]
[320737286,1711539160856,-1053.73,0.00060821,120]
[320737287,1711539160865,-2509.66,0.00060821,120]
[320737288,1711539160875,-2090.88,0.00060821,120]
[320737289,1711539160885,-3728.83,0.00060821,120]
[320737290,1711539160895,-14051.88,0.00060821,120]
[320737291,1711539160905,-5336.71,0.00060821,120]
[320737292,1711539160914,-6046.1,0.00060821,120]
[320737293,1711539160924,-1400.16,0.00060821,120]
[320737294,1711539160934,-6749.09,0.00060821,120]
[320737295,1711539160944,-1020.49,0.00060821,120]
[320737296,1711539160954,-3525.02,0.00060821,120]
[320737297,1711539160965,-9670.8,0.00060821,120]
[320737298,1711539160974,-2244.9,0.00060821,120]
[320737299,1711539160984,-4278.93,0.00060821,120]
[320737300,1711539160993,-500.0,0.00060821,120]
[320737301,1711539161002,-5002.55,0.00060821,120]
[320737302,1711539161012,-1319.68,0.00060821,120]
[320737303,1711539161021,-5599.22,0.00060821,120]
[320737304,1711539161032,-4145.52,0.00060821,120]
[320737305,1711539161041,-1033.96,0.00060821,120]
[320737306,1711539161051,-8690.1,0.00060821,120]
[320737307,1711539161060,-759.99,0.00060821,120]
[320737308,1711539161070,-938.28,0.00060821,120]
[320737309,1711539161079,-3689.75,0.00060821,120]
[320737310,1711539161088,-3289.32,0.00060821,120]
[320737311,1711539161098,-773.1,0.00060821,120]
[320737312,1711539161108,-670.41,0.00060821,120]
[320737313,1711539161117,-8474.88,0.00060821,120]
[320737314,1711539161127,-684.84,0.00060821,120]
[320737315,1711539161137,-991.15,0.00060821,120]
[320737316,1711539161147,-16950.66,0.00060821,120]
[320737317,1711539161156,-5480.38,0.00060821,120]
[320737318,1711539161166,-3421.26,0.00060821,120]
[320737319,1711539161176,-649.49,0.00060821,120]
[320737320,1711539161185,-1159.66,0.00060821,120]
[320737321,1711539161194,-2172.19,0.00060821,120]
[320737322,1711539161203,-2895.84,0.00060821,120]
[320737323,1711539161214,-2732.75,0.00060821,120]
[320737324,1711539161223,-20784.38,0.00060821,120]
[320737325,1711539161234,-17160.48,0.00060821,120]
[320737326,1711539161243,-4740.83,0.00060821,120]
[320737327,1711539161253,-886.33,0.00060821,120]
[320737328,1711539161262,-6247.3,0.00060821,120]
[320737329,1711539161274,-672.63,0.00060821,120]
[320737330,1711539161283,-5091.09,0.00060821,21]
[320737331,1711539161293,-584.47,0.00060821,120]
[320737332,1711539161302,-8381.34,0.00060821,120]
[320737333,1711539161313,-2273.07,0.00060821,120]
[320737334,1711539161322,-4086.57,0.00060821,120]
[320737335,1711539161332,-2370.47,0.00060821,120]
[320737336,1711539161341,-19292.32,0.00060821,120]
[320737337,1711539161351,-2960.24,0.00060821,120]
[320737338,1711539161360,-2000.0,0.00060821,120]
[320737339,1711539161370,-1173.99,0.00060821,120]
[320737340,1711539161379,-2202.57,0.00060821,120]
[320737341,1711539161388,-3278.85,0.00060821,120]
[320737342,1711539161398,-12410.62,0.00060821,120]
[320737343,1711539161408,-8798.58,0.00060821,120]
[320737344,1711539161418,-876.94,0.00060821,120]
[320737345,1711539161427,-3583.19,0.00060821,120]
[320737346,1711539161436,-895.2,0.00060821,120]
[320737347,1711539161446,-1845.88,0.00060821,120]
[320737348,1711539161455,-937.27,0.00060821,120]
[320737349,1711539161464,-1083.78,0.00060821,120]
[320737350,1711539161474,-3201.11,0.00060821,120]
[320737351,1711539161484,-2638.24,0.00060821,120]
[320737352,1711539161494,-1388.52,0.00060821,120]
[320737353,1711539161503,-4892.27,0.00060821,120]
[320737354,1711539161514,-2480.34,0.00060821,120]
[320737355,1711539161524,-1350.19,0.00060821,120]
[320737356,1711539161534,-3142.36,0.00060821,120]
[320737357,1711539161543,-2180.01,0.00060821,120]
[320737358,1711539161553,-1470.53,0.00060821,120]
[320737359,1711539161562,-1659.22,0.00060821,120]
[320737360,1711539161572,-8083.93,0.00060821,120]
[320737361,1711539161580,-505.71,0.00060821,120]
[320737362,1711539161590,-4166.77,0.00060821,120]
[320737363,1711539161599,-3516.57,0.00060821,120]
[320737364,1711539161608,-541.86,0.00060821,120]
[320737365,1711539161618,-2901.36,0.00060821,120]
[320737366,1711539161627,-10990.32,0.00060821,120]
[320737367,1711539161637,-1139.26,0.00060821,120]
[320737368,1711539161646,-686.73,0.00060821,120]
[320737369,1711539161657,-1107.90831877,0.00060822,120]
[320737370,1711539161666,-282.33678653,0.00060822,120]
[320737371,1711539161675,-157.04179302,0.00060822,120]
[320737372,1711539161684,-303.12040052,0.00060822,120]
[320737373,1711539161695,-150.0,0.00060873,120]
[320737374,1711539161704,-150.0,0.00060885,120]
[320737375,1711539161714,-150.0,0.00060954,120]
[320737376,1711539161723,-1006.68,0.0006096,120]
[320737377,1711539161732,-5022.0,0.00061,57]
[320737378,1711539161743,-300.0,0.00061,63]
[320737379,1711539161752,-250.0,0.00061,120]
[320737380,1711539161762,-5000.0,0.00061,120]
[320737381,1711539161771,-4019.54177817,0.00061,40]
[320737382,1711539161780,-150.0,0.00061,100]
[320737383,1711539161790,-150.0,0.00061008,120]
[320737384,1711539161799,-150.0,0.00061035,120]
[320737385,1711539161809,-500.0,0.00061046,90]
[320737386,1711539161818,-500.0,0.00061046,90]
[320737387,1711539161827,-895.3199858,0.00061095,120]
[320737388,1711539161837,-575.45069924,0.00061095,120]
[320737389,1711539161848,-563.98,0.00061095,120]
[320737390,1711539161857,-422.79914625,0.00061095,120]
[320737391,1711539161866,-447.10568737,0.00061095,120]
[320737392,1711539161877,-976.40310747,0.00061095,120]
[320737393,1711539161887,-531.54996498,0.00061095,120]
[320737394,1711539161896,-575.47865046,0.00061095,120]
[320737395,1711539161905,-503.4401087,0.00061095,120]
[320737396,1711539161915,-226.42587084,0.00061095,120]
[320737397,1711539161925,-544.56730161,0.00061095,120]
[320737398,1711539161934,-656.85811515,0.00061095,120]
[320737399,1711539161943,-786.12601998,0.00061095,120]
[320737400,1711539161952,-1108.38748202,0.00061095,120]
[320737401,1711539161961,-582.51844011,0.00061095,120]
[320737402,1711539161971,-650.76459179,0.00061095,120]
[320737403,1711539161982,-666.64467278,0.00061095,120]
[320737404,1711539161993,-512.73,0.00061095,120]
[320737405,1711539162003,-610.85,0.00061095,120]
[320737406,1711539162014,-544.61894164,0.00061095,120]
[320737407,1711539162024,-226.36890399,0.00061095,120]
[320737408,1711539162034,-1264.61777632,0.00061095,120]
[320737409,1711539162044,-564.16102966,0.00061095,120]
[320737410,1711539162055,-617.92571325,0.00061095,120]
[320737411,1711539162064,-832.32390585,0.00061095,120]
[320737412,1711539162073,-921.46642797,0.00061095,120]
[320737413,1711539162082,-695.64263604,0.00061095,120]
[320737414,1711539162092,-1458.97053601,0.00061095,120]
[320737415,1711539162101,-597.57688641,0.00061095,120]
[320737416,1711539162110,-1146.9126998,0.00061095,120]
[320737417,1711539162119,-2720.17038295,0.00061095,120]
[320737418,1711539162129,-388.76963504,0.00061095,120]
[320737419,1711539162139,-1170.98948742,0.00061095,120]
[320737420,1711539162148,-1986.62,0.00061095,120]
[320737421,1711539162158,-884.57744738,0.00061095,120]
[320737422,1711539162167,-1058.02535507,0.00061095,120]
[320737423,1711539162177,-616.94691612,0.00061095,120]
[320737424,1711539162186,-533.08396539,0.00061095,120]
[320737425,1711539162195,-702.4646992,0.00061095,120]
[320737426,1711539162204,-537.35273381,0.00061095,120]
[320737427,1711539162214,-5471.69476301,0.00061095,120]
[320737428,1711539162223,-587.18817548,0.00061095,120]
[320737429,1711539162232,-2128.3145343,0.00061095,120]
[320737430,1711539162241,-962.05,0.00061095,120]
[320737431,1711539162250,-792.14940303,0.00061095,120]
[320737432,1711539162259,-613.51251006,0.00061095,120]
[320737433,1711539162274,-1258.84316566,0.00061095,120]
[320737434,1711539162283,-931.4160153,0.00061095,120]
[320737435,1711539162292,-663.70780154,0.00061095,120]
[320737436,1711539162302,-1126.47592377,0.00061095,120]
[320737437,1711539162312,-906.12516276,0.00061095,120]
[320737438,1711539162322,-596.53673831,0.00061095,120]
[320737439,1711539162331,-1145.29495841,0.00061095,120]
[320737440,1711539162341,-1047.52156884,0.00061095,120]
[320737441,1711539162351,-1079.32822245,0.00061095,120]
[320737442,1711539162362,-307.81853055,0.00061095,120]
[320737443,1711539162372,-1050.19525582,0.00061095,120]
[320737444,1711539162381,-669.07579215,0.00061095,120]
[320737445,1711539162392,-798.34357317,0.00061095,120]
[320737446,1711539162401,-865.91582234,0.00061095,120]
[320737447,1711539162411,-434.61227597,0.00061095,120]
[320737448,1711539162420,-698.84595402,0.00061095,120]
[320737449,1711539162429,-805.6048662,0.00061095,120]
[320737450,1711539162439,-895.29784786,0.00061095,120]
[320737451,1711539162448,-2904.74639494,0.00061095,120]
[320737452,1711539162458,-575.09509901,0.00061095,120]
[320737453,1711539162687,-1059.7124138,0.00061095,120]
[320737454,1711539162697,-624.89423931,0.00061095,120]
[320737455,1711539162706,-566.20259834,0.00061095,120]
[320737456,1711539162716,-596.44694511,0.00061095,120]
[320737457,1711539162725,-511.60290382,0.00061095,120]
[320737458,1711539162734,-670.58423723,0.00061095,120]
[320737459,1711539162744,-2461.93,0.00061095,120]
[320737460,1711539162753,-1096.84614918,0.00061095,120]
[320737461,1711539162763,-730.64791029,0.00061095,120]
[320737462,1711539162772,-526.30466318,0.00061095,120]
[320737463,1711539162783,-813.60181853,0.00061095,120]
[320737464,1711539162792,-982.31358395,0.00061095,120]
[320737465,1711539162803,-2323.17759805,0.00061095,120]
[320737466,1711539162813,-952.41637496,0.00061095,120]
[320737467,1711539162822,-1090.79578153,0.00061095,120]
[320737468,1711539162832,-819.85959624,0.00061095,120]
[320737469,1711539162841,-2118.74443637,0.00061095,120]
[320737470,1711539162851,-1007.21540883,0.00061095,120]
[320737471,1711539162861,-680.61576596,0.00061095,120]
[320737472,1711539162870,-2012.70154262,0.00061095,120]
[320737473,1711539162880,-525.11610886,0.00061095,120]
[320737474,1711539162889,-1027.09793538,0.00061095,120]
[320737475,1711539162900,-775.74189836,0.00061095,120]
[320737476,1711539162909,-909.2760878,0.00061095,120]
[320737477,1711539162920,-669.67553242,0.00061095,120]
[320737478,1711539162931,-2014.63959892,0.00061095,120]
[320737479,1711539162943,-613.51,0.00061095,30]
[320737480,1711539162953,-670.35541964,0.00061095,120]
[320737481,1711539162963,-613.22045463,0.00061095,120]
[320737482,1711539162973,-276.90513441,0.00061095,120]
[320737483,1711539162983,-741.05403155,0.00061095,120]
[320737484,1711539162994,-715.99096847,0.00061095,120]
[320737485,1711539163004,-694.0455955,0.00061095,120]
[320737486,1711539163015,-1436.65911265,0.00061095,120]
[320737487,1711539163025,-788.63148457,0.00061095,120]
[320737488,1711539163034,-852.41844483,0.00061095,120]
[320737489,1711539163044,-608.12992465,0.00061095,120]
[320737490,1711539163054,-632.81922891,0.00061095,120]
[320737491,1711539163065,-524.73799966,0.00061095,120]
[320737492,1711539163075,-620.49208596,0.00061095,120]
[320737493,1711539163085,-818.91516256,0.00061095,120]
[320737494,1711539163095,-2063.8568587,0.00061095,120]
[320737495,1711539163104,-1004.48755633,0.00061095,120]
[320737496,1711539163116,-2011.93386611,0.00061095,120]
[320737497,1711539163128,-807.69499817,0.00061095,120]
[320737498,1711539163138,-755.2489669,0.00061095,120]
[320737499,1711539163149,-763.39005492,0.00061095,120]
[320737500,1711539163160,-487.85273113,0.00061095,120]
[320737501,1711539163169,-842.80070389,0.00061095,120]
[320737502,1711539163178,-713.11557817,0.00061095,120]
[320737503,1711539163189,-2308.25965431,0.00061095,120]
[320737504,1711539163200,-346.87,0.00061095,120]
[320737505,1711539163210,-676.24983829,0.00061095,120]
[320737506,1711539163219,-849.7566962,0.00061095,120]
[320737507,1711539163228,-677.22721161,0.00061095,120]
[320737508,1711539163238,-800.64317003,0.00061095,120]
[320737509,1711539163247,-988.07149715,0.00061095,120]
[320737510,1711539163256,-535.09938248,0.00061095,120]
[320737511,1711539163267,-930.61,0.00061095,120]
[320737512,1711539163279,-877.58358791,0.00061095,120]
[320737513,1711539163289,-2082.94708221,0.00061095,120]
[320737514,1711539163298,-520.71743963,0.00061095,120]
[320737515,1711539163308,-1016.60940823,0.00061095,120]
[320737516,1711539163317,-525.97630971,0.00061095,120]
[320737517,1711539163326,-1436.8377376,0.00061095,120]
[320737518,1711539163336,-2558.61813389,0.00061095,120]
[320737519,1711539163345,-2044.76153461,0.00061095,120]
[320737520,1711539163356,-545.88663432,0.00061095,120]
[320737521,1711539163365,-783.19783785,0.00061095,120]
[320737522,1711539163376,-3085.43200898,0.00061095,120]
[320737523,1711539163386,-839.94201387,0.00061095,120]
[320737524,1711539163397,-735.49799349,0.00061095,120]
[320737525,1711539163406,-3173.99538036,0.00061095,120]
[320737526,1711539163416,-1365.17210849,0.00061095,120]
[320737527,1711539163426,-1347.978997,0.00061095,120]
[320737528,1711539163434,-1726.00228277,0.00061095,120]
[320737529,1711539163525,-362.69102512,0.00055068,120]
[320737530,1711539163537,-4709.30949975,0.00055068,120]
[320737531,1711539163758,-256.89893274,0.00051398,2]
[320737532,1711539163795,-639.51,0.00051398,2]
[320737533,1711539163817,-380.54081217,0.00051398,2]
[320737534,1711539163843,-5415.07810641,0.00051398,2]
[320737535,1711539164215,-3434.49536127,0.00042471,2]
[320737536,1711539164226,-3140.39317378,0.00042471,2]
[320737537,1711539164425,-1732.32071076,0.00042471,2]
[320737538,1711539164436,-150.0,0.00049645,7]
[320737539,1711539164446,-150.0,0.00049649,7]
[320737540,1711539164457,-150.0,0.00049682,7]
[320737541,1711539164467,-150.0,0.00049691,7]
[320737542,1711539164477,-150.0,0.00049702,7]
[320737543,1711539164488,-150.0,0.00049719,7]
[320737544,1711539164497,-150.0,0.00049765,7]
[320737545,1711539164507,-150.0,0.0004977,7]
[320737546,1711539164522,-150.0,0.00049782,7]
[320737547,1711539164533,-150.0,0.00049783,7]
[320737548,1711539164543,-150.0,0.00049786,7]
[320737549,1711539164553,-150.0,0.00049787,7]
[320737550,1711539164564,-150.0,0.00049792,7]
[320737551,1711539164574,-150.0,0.00049806,7]
[320737552,1711539164583,-150.0,0.0004982,7]
[320737553,1711539164594,-150.0,0.00049841,7]
[320737554,1711539164605,-150.0,0.00049841,7]
[320737555,1711539164614,-150.0,0.00049861,7]
[320737556,1711539164624,-150.0,0.00049864,7]
[320737557,1711539164634,-150.0,0.00049866,7]
[320737558,1711539164644,-4694.25245004,0.00051398,2]
[320737559,1711539164670,-2486.76963531,0.00051398,2]
[320737560,1711539164680,-852.718661,0.0005278,120]
[320737561,1711539164690,-852.718661,0.00053,120]
[320737562,1711539164701,-885.32,0.00054794,120]
[320737563,1711539164711,-852.718661,0.00054794,120]
[320737564,1711539164721,-4300.99947513,0.00055068,120]
[320737565,1711539164732,-885.32,0.00055068,120]
[320737566,1711539164741,-852.718661,0.00055068,120]
[320737567,1711539164752,-9373.0,0.00055342,120]
[320737568,1711539164766,-885.32,0.00055342,120]
[320737569,1711539164775,-852.718661,0.00055342,120]
[320737570,1711539164786,-852.718661,0.00055616,120]
[320737571,1711539164796,-9373.0,0.00055616,120]
[320737572,1711539164807,-852.718661,0.00055616,120]
[320737573,1711539164817,-852.718661,0.00055852,120]
[320737574,1711539164827,-852.718661,0.00055852,120]
[320737575,1711539164837,-752.78,0.0005589,120]
[320737576,1711539164848,-9373.0,0.0005589,120]
[320737577,1711539164858,-852.718661,0.0005589,120]
[320737578,1711539164867,-852.718661,0.0005589,120]
[320737579,1711539164881,-752.78,0.00056164,120]
[320737580,1711539164891,-9373.0,0.00056164,120]
[320737581,1711539164901,-852.718661,0.00056164,120]
[320737582,1711539164912,-752.78,0.00056438,120]
[320737583,1711539164921,-9373.0,0.00056438,120]
[320737584,1711539164933,-2528.02,0.00056712,120]
[320737585,1711539164943,-752.78,0.00056712,120]
[320737586,1711539164953,-9373.0,0.00056712,120]